bitfinex-derivatives/quotes_BTCF0:USTF0_20250809
["timestamp","ask_amount","ask_price","bid_price","bid_amount"]
[1754772629258,1.3115328,116910.0,116900.0,0.34570216]
[1754772634654,1.3115328,116910.0,116900.0,0.14055696]
[1754772634952,1.3115328,116910.0,116900.0,0.10731696]
[1754772635351,0.1054652,116900.0,116890.0,0.30975726]
[1754772635657,1.9227632,116900.0,116890.0,0.30975726]
[1754772635957,1.9227632,116900.0,116890.0,0.22422466]
[1754772636454,1.9237632,116900.0,116890.0,0.22422466]
[1754772636747,1.9257632,116900.0,116890.0,0.22422466]
[1754772638661,1.9257632,116900.0,116890.0,0.22522466]
[1754772639155,1.9257632,116900.0,116890.0,0.13969696]
[1754772641256,1.9257632,116900.0,116890.0,0.22522946]
[1754772641755,1.9257632,116900.0,116890.0,0.13969696]
[1754772642656,1.9257632,116900.0,116890.0,0.22522946]
[1754772643158,1.9257632,116900.0,116890.0,0.13969696]
[1754772645156,2.26395408,116900.0,116890.0,0.13969696]
[1754772645353,2.2574122,116900.0,116890.0,0.13969696]
[1754772645753,1.2624652,116900.0,116890.0,0.22522946]
[1754772646057,1.9257632,116900.0,116890.0,0.26000946]
[1754772646948,1.9257632,116900.0,116890.0,0.13969696]
[1754772647659,2.2574122,116900.0,116890.0,0.13969696]
[1754772647961,2.26406768,116900.0,116890.0,0.13969696]
[1754772648459,2.2574122,116900.0,116890.0,0.13969696]
[1754772651360,2.26250242,116900.0,116890.0,0.13969696]
[1754772652159,2.62330242,116900.0,116890.0,0.13969696]
[1754772653465,2.2574122,116900.0,116890.0,0.13969696]
[1754772654464,1.2624652,116900.0,116890.0,0.13969696]
[1754772654656,1.9257632,116900.0,116890.0,0.23521696]
[1754772654861,1.9257632,116900.0,116890.0,0.26117696]
[1754772656463,1.9257632,116900.0,116890.0,0.15386]
[1754772656870,1.2624652,116900.0,116890.0,0.15386]
[1754772657169,1.9257632,116900.0,116890.0,0.15386]
[1754772658470,1.9257632,116900.0,116890.0,0.26117696]
[1754772658872,1.9257632,116900.0,116890.0,0.15386]
[1754772662279,1.9257632,116900.0,116890.0,0.26117696]
[1754772663362,1.9257632,116900.0,116890.0,0.15386]
[1754772664975,1.9257632,116900.0,116890.0,0.1279]
[1754772665172,1.9257632,116900.0,116890.0,0.09312]
[1754772665775,1.9257632,116900.0,116890.0,0.20043696]
[1754772669679,1.9257632,116900.0,116890.0,0.28596946]
[1754772670181,1.2186432,116900.0,116890.0,0.28596946]
[1754772670380,1.3041684,116900.0,116890.0,0.28596946]
[1754772671978,1.3041684,116900.0,116890.0,0.31755946]
[1754772673580,1.456138,116900.0,116890.0,0.31755946]
[1754772673780,1.5416632,116900.0,116890.0,0.31755946]
[1754772674585,1.5416632,116900.0,116890.0,0.2102425]
[1754772676585,0.7928,116900.0,116890.0,0.2102425]
[1754772676785,1.5416232,116900.0,116890.0,0.5418915]
[1754772677982,1.5416232,116900.0,116890.0,0.5659115]
[1754772679191,1.2099742,116900.0,116890.0,0.5659115]
[1754772680094,1.2099342,116900.0,116890.0,1.0977739]
[1754772681092,1.2099342,116900.0,116890.0,1.20509086]
[1754772681295,1.2099342,116900.0,116890.0,0.70237686]
[1754772681496,1.5415832,116900.0,116890.0,0.8711015]
[1754772682195,1.5415832,116900.0,116890.0,0.9026915]
[1754772682996,1.5415832,116900.0,116890.0,0.5710425]
[1754772683199,1.5415832,116900.0,116890.0,0.5950625]
[1754772684087,0.8782852,116900.0,116890.0,0.5950625]
[1754772684292,1.2099342,116900.0,116890.0,0.5950625]
[1754772684995,1.5415832,116900.0,116890.0,0.9267115]
[1754772685897,0.8782052,116900.0,116890.0,0.9267115]
[1754772686099,1.5415032,116900.0,116890.0,0.9267115]
[1754772687000,0.8782052,116900.0,116890.0,0.9267115]
[1754772687205,1.5415032,116900.0,116890.0,0.9267115]
[1754772687403,0.8782052,116900.0,116890.0,0.9267115]
[1754772687701,1.5415032,116900.0,116890.0,0.9267115]
[1754772687903,1.5415032,116900.0,116890.0,0.5950625]
[1754772688094,0.8782052,116900.0,116890.0,0.9267115]
[1754772688296,1.2098542,116900.0,116890.0,0.9267115]
[1754772688901,1.2098542,116900.0,116890.0,0.841179]
[1754772689097,1.2098542,116900.0,116890.0,0.5950625]
[1754772689299,1.2098542,116900.0,116890.0,0.9267115]
[1754772689494,0.26174917,116910.0,116890.0,0.9267115]
[1754772689709,0.9636883,116910.0,116900.0,0.723289]
[1754772689908,1.4663856,116910.0,116900.0,0.723289]
[1754772690207,1.4663856,116910.0,116900.0,0.39164]
[1754772690412,1.4663856,116910.0,116900.0,0.723289]
[1754772691214,1.4683856,116910.0,116900.0,0.723289]
[1754772691410,1.4703856,116910.0,116900.0,0.723289]
[1754772692010,1.4703856,116910.0,116900.0,1.054938]
[1754772692417,1.1387366,116910.0,116900.0,1.054938]
[1754772692710,1.4703856,116910.0,116900.0,1.054938]
[1754772692918,1.1387366,116910.0,116900.0,1.054938]
[1754772693110,1.4703856,116910.0,116900.0,0.39164]
[1754772693311,1.4703856,116910.0,116900.0,1.054938]
[1754772694407,1.4703856,116910.0,116900.0,1.110548]
[1754772694606,1.4703856,116910.0,116900.0,0.39164]
[1754772695015,1.5782456,116910.0,116900.0,0.723289]
[1754772695212,1.2465966,116910.0,116900.0,0.723289]
[1754772695516,1.5782456,116910.0,116900.0,0.723289]
[1754772697919,1.2465966,116910.0,116900.0,0.723289]
[1754772698416,1.5782456,116910.0,116900.0,0.723289]
[1754772698618,1.2465966,116910.0,116900.0,0.723289]
[1754772698921,1.5782456,116910.0,116900.0,0.723289]
[1754772699716,1.2465966,116910.0,116900.0,0.723289]
[1754772700016,1.5782456,116910.0,116900.0,0.723289]
[1754772700717,1.5782456,116910.0,116900.0,1.084089]
[1754772701417,1.5782456,116910.0,116900.0,0.75244]
[1754772701608,1.5782456,116910.0,116900.0,1.084089]
[1754772702118,1.5782456,116910.0,116900.0,1.136779]
[1754772702817,1.5782456,116910.0,116900.0,1.182879]
[1754772703415,1.2465966,116910.0,116900.0,1.243689]
[1754772703616,1.5782456,116910.0,116900.0,1.243689]
[1754772703818,1.2465966,116910.0,116900.0,1.243689]
[1754772704129,1.5782456,116910.0,116900.0,1.243689]
[1754772705320,1.2465966,116910.0,116900.0,1.243689]
[1754772705520,1.5782456,116910.0,116900.0,1.243689]
[1754772706119,1.5782456,116910.0,116900.0,0.544069]
[1754772706324,1.5782456,116910.0,116900.0,1.265669]
[1754772706713,1.3286066,116910.0,116900.0,1.265669]
[1754772706912,1.6602556,116910.0,116900.0,1.265669]
[1754772707719,1.3286066,116910.0,116900.0,1.265669]
[1754772707922,1.6602556,116910.0,116900.0,1.265669]
[1754772708522,1.3286066,116910.0,116900.0,1.265669]
[1754772708820,1.6602556,116910.0,116900.0,1.265669]
[1754772709014,1.3286066,116910.0,116900.0,1.265669]
[1754772709216,1.6602556,116910.0,116900.0,1.265669]
[1754772714020,1.6602556,116910.0,116900.0,1.219569]
[1754772714325,1.3286066,116910.0,116900.0,1.219569]
[1754772714616,1.6602556,116910.0,116900.0,1.219569]
[1754772714821,1.6602556,116910.0,116900.0,1.265669]
[1754772718128,1.6602556,116910.0,116900.0,1.182879]
[1754772718425,1.3286066,116910.0,116900.0,1.182879]
[1754772718626,1.6602556,116910.0,116900.0,1.182879]
[1754772718827,1.6602556,116910.0,116900.0,1.084089]
[1754772719624,1.6602556,116910.0,116900.0,0.75244]
[1754772719821,1.6602556,116910.0,116900.0,0.39164]
[1754772720219,1.3286066,116910.0,116900.0,0.39164]
[1754772720428,1.6602556,116910.0,116900.0,0.39164]
[1754772723128,1.6602556,116910.0,116900.0,0.47443]
[1754772723431,1.6602556,116910.0,116900.0,0.57322]
[1754772723728,1.3286066,116910.0,116900.0,0.57322]
[1754772723928,1.6602556,116910.0,116900.0,0.57322]
[1754772724826,1.3286066,116910.0,116900.0,0.57322]
[1754772725130,1.6602556,116910.0,116900.0,0.904869]
[1754772727730,1.6602556,116910.0,116900.0,0.57322]
[1754772727932,1.6602556,116910.0,116900.0,0.904869]
[1754772728625,1.6602556,116910.0,116900.0,0.3608]
[1754772728819,1.6602556,116910.0,116900.0,0.737499]
[1754772729826,1.6602556,116910.0,116900.0,0.768469]
[1754772730026,1.6602556,116910.0,116900.0,0.855439]
[1754772730421,1.6602556,116910.0,116900.0,0.941089]
[1754772732230,1.6602556,116910.0,116900.0,0.60944]
[1754772732431,1.6602556,116910.0,116900.0,0.941089]
[1754772734630,1.3286066,116910.0,116900.0,0.941089]
[1754772734934,1.6602556,116910.0,116900.0,0.941089]
[1754772735137,1.3286066,116910.0,116900.0,0.941089]
[1754772735436,1.6602556,116910.0,116900.0,0.941089]
[1754772742037,1.6395756,116910.0,116900.0,0.941089]
[1754772742337,0.5157266,116910.0,116900.0,1.272938]
[1754772742540,1.4696656,116910.0,116900.0,1.272938]
[1754772742729,1.5122356,116910.0,116900.0,1.272938]
[1754772742933,1.5532056,116910.0,116900.0,1.272938]
[1754772743134,0.3462966,116910.0,116900.0,1.7192631]
[1754772743335,1.1380166,116910.0,116900.0,1.633738]
[1754772743738,1.1380166,116910.0,116900.0,1.7192631]
[1754772744236,1.1380166,116910.0,116900.0,1.633738]
[1754772744740,1.1380166,116910.0,116900.0,1.7192631]
[1754772745137,1.1380166,116910.0,116900.0,0.97044]
[1754772745348,1.1380166,116910.0,116900.0,1.633738]
[1754772745644,1.1380166,116910.0,116900.0,1.7192631]
[1754772746437,1.1380166,116910.0,116900.0,1.633738]
[1754772747636,1.1805866,116910.0,116900.0,1.633738]
[1754772749259,1.1805866,116910.0,116900.0,0.97044]
[1754772749439,1.2215566,116910.0,116900.0,1.302089]
[1754772749946,1.5532056,116910.0,116900.0,1.302089]
[1754772750742,1.2215566,116910.0,116900.0,1.302089]
[1754772750941,1.5532056,116910.0,116900.0,1.302089]
[1754772752445,1.2215566,116910.0,116900.0,0.97044]
[1754772752746,1.5532056,116910.0,116900.0,1.302089]
[1754772753143,1.6496356,116910.0,116900.0,1.302089]
[1754772757647,1.6496356,116910.0,116900.0,0.941289]
[1754772760751,1.6496356,116910.0,116900.0,0.580489]
[1754772761051,1.6496356,116910.0,116900.0,0.941289]
[1754772762052,1.6496356,116910.0,116900.0,0.60964]
[1754772762351,1.6496356,116910.0,116900.0,0.941289]
[1754772763150,1.3179866,116910.0,116900.0,0.941289]
[1754772763351,1.6496356,116910.0,116900.0,0.941289]
[1754772763752,1.6496356,116910.0,116900.0,0.580489]
[1754772763953,1.6496356,116910.0,116900.0,0.941289]
[1754772766154,1.6703156,116910.0,116900.0,0.941289]
[1754772766350,1.6703156,116910.0,116900.0,0.50616]
[1754772766556,1.3386666,116910.0,116900.0,0.837809]
[1754772766856,1.6703156,116910.0,116900.0,0.890459]
[1754772767056,1.6703156,116910.0,116900.0,0.934449]
[1754772767858,1.6703156,116910.0,116900.0,0.6028]
[1754772768156,1.6703156,116910.0,116900.0,0.934449]
[1754772768758,1.3386666,116910.0,116900.0,0.934449]
[1754772768954,1.6703156,116910.0,116900.0,0.934449]
[1754772771759,1.3386666,116910.0,116900.0,0.934449]
[1754772772059,1.6703156,116910.0,116900.0,0.934449]
[1754772776864,1.3386666,116910.0,116900.0,0.934449]
[1754772777063,1.6703156,116910.0,116900.0,0.934449]
[1754772779465,1.6703156,116910.0,116900.0,0.837809]
[1754772779765,1.6703156,116910.0,116900.0,0.6028]
[1754772782067,1.3386666,116910.0,116900.0,0.6028]
[1754772782267,1.6703156,116910.0,116900.0,0.6028]
[1754772782969,1.6703156,116910.0,116900.0,0.934449]
[1754772785081,1.6703156,116910.0,116900.0,0.6028]
[1754772786279,1.3386666,116910.0,116900.0,0.6028]
[1754772786578,1.6703156,116910.0,116900.0,0.934449]
[1754772787282,1.3386666,116910.0,116900.0,0.934449]
[1754772787484,1.6703156,116910.0,116900.0,0.934449]
[1754772787884,1.3386666,116910.0,116900.0,0.934449]
[1754772788084,1.6703156,116910.0,116900.0,0.6028]
[1754772791975,1.6703156,116910.0,116900.0,0.934449]
[1754772792382,1.6703156,116910.0,116900.0,0.6028]
[1754772792583,1.3386666,116910.0,116900.0,0.934449]
[1754772792779,1.6703156,116910.0,116900.0,0.934449]
[1754772793883,1.6703156,116910.0,116900.0,0.6028]
[1754772794085,1.6703156,116910.0,116900.0,0.934449]
[1754772795677,1.6703156,116910.0,116900.0,0.6028]
[1754772795874,1.6703156,116910.0,116900.0,0.934449]
[1754772796579,1.6703156,116910.0,116900.0,0.6028]
[1754772797786,1.3386666,116910.0,116900.0,0.6028]
[1754772797985,1.6703156,116910.0,116900.0,0.6028]
[1754772799981,1.6703156,116910.0,116900.0,0.934449]
[1754772800381,1.6703156,116910.0,116900.0,0.6028]
[1754772800574,1.6703156,116910.0,116900.0,0.934449]
[1754772801077,1.6703156,116910.0,116900.0,0.6028]
[1754772802988,1.3386666,116910.0,116900.0,0.6028]
[1754772803184,1.6703156,116910.0,116900.0,0.6028]
[1754772813390,1.3386666,116910.0,116900.0,0.6028]
[1754772813696,1.3386666,116910.0,116900.0,0.934449]
[1754772813993,1.6703156,116910.0,116900.0,0.6028]
[1754772816389,1.6703156,116910.0,116900.0,0.934449]
[1754772817096,1.3386666,116910.0,116900.0,0.934449]
[1754772817288,1.6703156,116910.0,116900.0,0.934449]
[1754772818595,1.3386666,116910.0,116900.0,0.934449]
[1754772818799,1.6703156,116910.0,116900.0,0.934449]
[1754772819496,1.6703156,116910.0,116900.0,0.6028]
[1754772819888,1.6703156,116910.0,116900.0,0.934449]
[1754772820595,1.6703156,116910.0,116900.0,0.6028]
[1754772823092,1.6703156,116910.0,116900.0,0.361]
[1754772823396,2.0019646,116910.0,116900.0,0.04782]
[1754772823985,1.6703156,116910.0,116900.0,0.04782]
[1754772824398,2.4494646,116910.0,116900.0,0.0002]
[1754772825198,2.4494646,116910.0,116900.0,0.04782]
[1754772827889,2.4494646,116910.0,116900.0,0.0002]
[1754772829299,2.4494646,116910.0,116900.0,0.04782]
[1754772829893,2.4494646,116910.0,116900.0,0.0002]
[1754772830601,2.8102646,116910.0,116900.0,0.0002]
[1754772832088,2.4494646,116910.0,116900.0,0.0002]
[1754772832298,2.8102646,116910.0,116900.0,0.0002]
[1754772832497,2.8102646,116910.0,116900.0,0.04782]
[1754772833402,2.4494646,116910.0,116900.0,0.04782]
[1754772833601,2.8102646,116910.0,116900.0,0.04782]
[1754772835900,2.4494646,116910.0,116900.0,0.04782]
[1754772836102,2.8102646,116910.0,116900.0,0.04782]
[1754772837098,2.8102646,116910.0,116900.0,0.0002]
[1754772837893,2.8100646,116910.0,116900.0,1e-07]
[1754772840800,3.1417136,116910.0,116900.0,1e-07]
[1754772841105,2.8100646,116910.0,116900.0,1e-07]
[1754772841500,2.3625646,116910.0,116900.0,1e-07]
[1754772843201,1.6992666,116910.0,116900.0,1e-07]
[1754772843502,2.3625646,116910.0,116900.0,1e-07]
[1754772847700,0.1550724,116890.0,116880.0,0.41142]
[1754772847897,1.7434804,116890.0,116880.0,0.19064]
[1754772848104,0.2484171,116870.0,116860.0,0.692449]
[1754772848409,0.2484171,116870.0,116860.0,0.788539]
[1754772848410,1.3693061,116870.0,116860.0,0.788539]
[1754772848597,1.3347961,116870.0,116860.0,0.884159]
[1754772849202,1.2414661,116870.0,116860.0,0.884159]
[1754772849403,1.2759761,116870.0,116860.0,0.884159]
[1754772849603,1.2759761,116870.0,116860.0,0.55251]
[1754772849908,0.9443271,116870.0,116860.0,0.934209]
[1754772850109,1.2759761,116870.0,116860.0,0.60256]
[1754772850310,1.35982229,116870.0,116860.0,0.934209]
[1754772850503,1.35982229,116870.0,116860.0,0.936209]
[1754772851708,1.02817329,116870.0,116860.0,0.936209]
[1754772852103,1.35982229,116870.0,116860.0,0.936209]
[1754772854613,1.02817329,116870.0,116860.0,0.936209]
[1754772854814,1.35982229,116870.0,116860.0,0.936209]
[1754772857812,1.02817329,116870.0,116860.0,0.936209]
[1754772858016,1.35982229,116870.0,116860.0,0.936209]
[1754772858617,1.02817329,116870.0,116860.0,0.936209]
[1754772858910,1.35982229,116870.0,116860.0,0.936209]
[1754772863920,1.35982229,116870.0,116860.0,0.60456]
[1754772864217,1.40436229,116870.0,116860.0,0.934209]
[1754772864418,1.34646243,116870.0,116860.0,0.934209]
[1754772864916,1.36132858,116870.0,116860.0,0.934209]
[1754772865618,1.02967958,116870.0,116860.0,0.934209]
[1754772865918,1.36332858,116870.0,116860.0,0.931209]
[1754772866619,1.03167958,116870.0,116860.0,0.931209]
[1754772866805,1.36332858,116870.0,116860.0,0.931409]
[1754772867919,1.40586858,116870.0,116860.0,0.59976]
[1754772868106,1.40586858,116870.0,116860.0,0.931409]
[1754772869319,1.07421958,116870.0,116860.0,0.931409]
[1754772869620,1.39100243,116870.0,116860.0,0.931409]
[1754772870318,1.39100243,116870.0,116860.0,0.59976]
[1754772870507,1.39100243,116870.0,116860.0,0.931409]
[1754772870820,1.05935343,116870.0,116860.0,0.931409]
[1754772871021,1.39100243,116870.0,116860.0,0.931409]
[1754772872221,1.07475182,116870.0,116860.0,0.931409]
[1754772872520,1.40640082,116870.0,116860.0,0.931409]
[1754772874416,1.05935343,116870.0,116860.0,0.931409]
[1754772874617,1.39100243,116870.0,116860.0,0.931409]
[1754772876023,1.05935343,116870.0,116860.0,0.931409]
[1754772876224,1.39100243,116870.0,116860.0,0.931409]
[1754772876425,1.39100243,116870.0,116860.0,0.570609]
[1754772876728,1.39100243,116870.0,116860.0,0.931409]
[1754772876919,1.34846243,116870.0,116860.0,0.59976]
[1754772877122,1.39100243,116870.0,116860.0,0.931409]
[1754772877614,0.31913343,116870.0,116860.0,1.263058]
[1754772877814,1.07342343,116870.0,116860.0,1.263058]
[1754772878020,1.40507243,116870.0,116860.0,1.263058]
[1754772878329,1.40507243,116870.0,116860.0,0.931409]
[1754772879124,1.43814243,116870.0,116860.0,0.931409]
[1754772885834,1.43814243,116870.0,116860.0,0.96056]
[1754772886131,1.43814243,116870.0,116860.0,1.292209]
[1754772886430,1.10649343,116870.0,116860.0,1.292209]
[1754772886633,1.43814243,116870.0,116860.0,1.292209]
[1754772887130,1.48068243,116870.0,116860.0,1.292209]
[1754772892642,1.48068243,116870.0,116860.0,0.91511]
[1754772892935,1.48068243,116870.0,116860.0,0.86494]
[1754772893140,1.81233143,116870.0,116860.0,0.86494]
[1754772893340,1.81233143,116870.0,116860.0,0.83154]
[1754772893837,1.81233143,116870.0,116860.0,0.76885]
[1754772894232,1.81233143,116870.0,116860.0,0.7218]
[1754772894828,1.81233143,116870.0,116860.0,0.76961]
[1754772897639,1.14903343,116870.0,116860.0,0.76961]
[1754772897833,1.81233143,116870.0,116860.0,0.76961]
[1754772899741,1.81233143,116870.0,116860.0,0.84741]
[1754772900138,1.81233143,116870.0,116860.0,0.48661]
[1754772900334,1.81233143,116870.0,116860.0,0.51888]
[1754772900536,1.81233143,116870.0,116860.0,0.43644]
[1754772904737,1.81233143,116870.0,116860.0,0.48661]
[1754772905131,1.81233143,116870.0,116860.0,0.51888]
[1754772905337,1.81233143,116870.0,116860.0,0.5583]
[1754772905537,1.81233143,116870.0,116860.0,0.59191]
[1754772906240,1.14903343,116870.0,116860.0,0.59191]
[1754772906441,1.81233143,116870.0,116860.0,0.59191]
[1754772907743,1.48068243,116870.0,116860.0,0.59191]
[1754772912244,1.48000243,116870.0,116860.0,0.923559]
[1754772917255,1.14835343,116870.0,116860.0,0.923559]
[1754772917447,1.48000243,116870.0,116860.0,0.923559]
[1754772922051,1.47980243,116870.0,116860.0,0.59191]
[1754772922267,1.47980243,116870.0,116860.0,0.923559]
[1754772924355,0.94587343,116870.0,116860.0,1.255208]
[1754772924565,0.97634343,116870.0,116860.0,1.255208]
[1754772925259,1.00694343,116870.0,116860.0,1.255208]
[1754772925859,1.33859243,116870.0,116860.0,1.255208]
[1754772926868,1.06605343,116870.0,116860.0,1.255208]
[1754772927269,0.94583343,116870.0,116860.0,1.255208]
[1754772929466,0.97630343,116870.0,116860.0,1.255208]
[1754772931870,0.97630343,116870.0,116860.0,1.616008]
[1754772934976,1.00635343,116870.0,116860.0,1.616008]
[1754772936773,1.00635343,116870.0,116860.0,0.894408]
[1754772936977,1.00635343,116870.0,116860.0,1.616008]
[1754772937771,0.15803343,116870.0,116860.0,1.616008]
[1754772937972,0.94571343,116870.0,116860.0,1.616008]
[1754772938371,0.97555343,116870.0,116860.0,1.616008]
[1754772940383,1.00560343,116870.0,116860.0,1.616008]
[1754772942782,0.94563343,116870.0,116860.0,1.7015624]
[1754772942983,0.94563343,116870.0,116860.0,0.95271]
[1754772943280,0.94563343,116870.0,116860.0,1.616008]
[1754772944781,0.94563343,116870.0,116860.0,2.403608]
[1754772946682,0.94563343,116870.0,116860.0,1.616008]
[1754772948586,0.94563343,116870.0,116860.0,0.95271]
[1754772948885,0.97478343,116870.0,116860.0,1.616008]
[1754772950980,0.97478343,116870.0,116860.0,0.894408]
[1754772951181,0.97478343,116870.0,116860.0,1.616008]
[1754772953189,1.00424343,116870.0,116860.0,1.616008]
[1754772953687,1.00424343,116870.0,116860.0,0.95271]
[1754772953885,1.00424343,116870.0,116860.0,1.616008]
[1754772955899,1.00424343,116870.0,116860.0,0.95271]
[1754772956095,1.00424343,116870.0,116860.0,1.616008]
[1754772965101,1.04678343,116870.0,116860.0,1.616008]
[1754772967694,1.00424343,116870.0,116860.0,1.616008]
[1754772971297,0.94563343,116870.0,116860.0,1.616008]
[1754772971499,1.13280343,116870.0,116860.0,1.616008]
[1754772971697,1.09026343,116870.0,116860.0,1.616008]
[1754772973694,0.15803343,116870.0,116860.0,1.7015623]
[1754772973896,0.94523343,116870.0,116860.0,1.7015623]
[1754772974596,0.97335343,116870.0,116860.0,1.7015623]
[1754772978504,1.00193343,116870.0,116860.0,1.7015623]
[1754772981108,1.00193343,116870.0,116860.0,1.80887926]
[1754772981308,1.00193343,116870.0,116860.0,1.14558126]
[1754772981510,1.00193343,116870.0,116860.0,1.80887926]
[1754772981811,1.00193343,116870.0,116860.0,1.08727926]
[1754772982012,1.00193343,116870.0,116860.0,1.80887926]
[1754772983110,1.00193343,116870.0,116860.0,1.08727926]
[1754772983309,1.00193343,116870.0,116860.0,1.80887926]
[1754772983917,1.00193343,116870.0,116860.0,1.7015623]
[1754772987109,0.94523343,116870.0,116860.0,1.7015623]
[1754772988406,0.97335343,116870.0,116860.0,1.7015623]
[1754772990418,1.00193343,116870.0,116860.0,1.7015623]
[1754772992306,0.18615343,116870.0,116860.0,1.7015623]
[1754772992512,0.94487343,116870.0,116860.0,1.7015623]
[1754772992715,0.15803343,116870.0,116860.0,1.7015623]
[1754772992910,0.004,116870.0,116860.0,2.0332113]
[1754772993217,0.004,116870.0,116860.0,2.14052826]
[1754772993424,0.004,116870.0,116860.0,2.15815514]
[1754772993619,0.004,116870.0,116860.0,2.05083818]
[1754772993919,0.002,116870.0,116860.0,2.05083818]
[1754772994307,0.0875471,116870.0,116860.0,2.15813245]
[1754772994907,0.0855471,116870.0,116860.0,2.15813245]
[1754772995117,0.0865471,116870.0,116860.0,2.15813245]
[1754772995712,0.0855471,116870.0,116860.0,2.15813245]
[1754772996109,0.0855471,116870.0,116860.0,2.15913245]
[1754772996314,0.0855471,116870.0,116860.0,2.15873245]
[1754773000423,0.0855471,116870.0,116860.0,1.82708345]
[1754773000824,0.1968771,116870.0,116860.0,1.82708345]
[1754773001016,0.2295671,116870.0,116860.0,1.82708345]
[1754773002225,0.2295671,116870.0,116860.0,1.71978918]
[1754773002424,0.6039561,116870.0,116860.0,1.05649118]
[1754773002617,0.6039561,116870.0,116860.0,1.26316588]
[1754773002813,0.6039561,116870.0,116860.0,1.616898]
[1754773003017,0.6039561,116870.0,116860.0,1.285249]
[1754773003217,1.3905161,116870.0,116860.0,1.243169]
[1754773003423,0.2723071,116870.0,116860.0,1.195369]
[1754773003622,0.6039561,116870.0,116860.0,1.195369]
[1754773003924,0.6039561,116870.0,116860.0,1.282879]
[1754773004318,0.6049561,116870.0,116860.0,0.95023]
[1754773004518,0.6049561,116870.0,116860.0,1.281879]
[1754773004926,0.2733071,116870.0,116860.0,1.281879]
[1754773005122,0.6049561,116870.0,116860.0,1.281879]
[1754773005326,0.2733071,116870.0,116860.0,1.6990824]
[1754773005825,0.34095172,116870.0,116860.0,1.6990824]
[1754773006026,0.34095172,116870.0,116860.0,1.613528]
[1754773006525,0.34095172,116870.0,116860.0,1.6990824]
[1754773007431,0.34095172,116870.0,116860.0,1.613528]
[1754773009130,0.29821172,116870.0,116860.0,1.613528]
[1754773009832,0.29821172,116870.0,116860.0,1.6990824]
[1754773010329,0.29821172,116870.0,116860.0,1.613528]
[1754773021838,0.26552172,116870.0,116860.0,1.613528]
[1754773022342,0.23838172,116870.0,116860.0,1.613528]
[1754773022942,0.15419172,116870.0,116860.0,1.613528]
[1754773025850,0.15419172,116870.0,116860.0,0.95023]
[1754773026246,0.15419172,116870.0,116860.0,1.613528]
[1754773035151,0.15419172,116870.0,116860.0,0.891928]
[1754773035355,0.15419172,116870.0,116860.0,1.613528]
[1754773042072,0.15419172,116870.0,116860.0,0.891928]
[1754773042468,0.15419172,116870.0,116860.0,1.613528]
[1754773042768,0.15419172,116870.0,116860.0,0.891928]
[1754773043076,0.15419172,116870.0,116860.0,1.613528]
[1754773046768,0.15419172,116870.0,116860.0,0.95023]
[1754773047065,0.15419172,116870.0,116860.0,1.613528]
[1754773049074,0.15419172,116870.0,116860.0,0.95023]
[1754773049276,0.15419172,116870.0,116860.0,1.613528]
[1754773054781,0.15419172,116870.0,116860.0,0.95023]
[1754773054979,0.15419172,116870.0,116860.0,1.613528]
[1754773055774,0.15419172,116870.0,116860.0,1.252728]
[1754773055980,0.15419172,116870.0,116860.0,1.613528]
[1754773066188,0.15419172,116870.0,116860.0,0.891928]
[1754773066486,0.15439172,116870.0,116860.0,1.6992824]
[1754773066685,0.14345882,116870.0,116860.0,2.0309314]
[1754773066988,0.0857471,116870.0,116860.0,1.6992824]
[1754773067888,0.15294692,116870.0,116860.0,1.6992824]
[1754773070091,0.15294692,116870.0,116860.0,1.80657667]
[1754773071092,0.15294692,116870.0,116860.0,1.08497667]
[1754773071391,0.15294692,116870.0,116860.0,1.80657667]
[1754773077888,0.15294692,116870.0,116860.0,2.13822567]
[1754773078095,0.0857471,116870.0,116860.0,2.13822567]
[1754773078689,0.0002,116870.0,116860.0,2.13822567]
[1754773078885,0.3422772,116880.0,116870.0,0.3041071]
[1754773079086,0.3422772,116880.0,116870.0,2.1136051]
[1754773079287,0.3422772,116880.0,116870.0,2.22089937]
[1754773080996,0.3432772,116880.0,116870.0,2.22089937]
[1754773081693,0.3432772,116880.0,116870.0,2.1136051]
[1754773082091,0.3432772,116880.0,116870.0,2.4744051]
[1754773087801,0.3432772,116880.0,116870.0,1.8111071]
[1754773087998,0.3432772,116880.0,116870.0,2.4744051]
[1754773088600,0.3432772,116880.0,116870.0,1.8111071]
[1754773088801,0.3432772,116880.0,116870.0,2.4744051]
[1754773093607,0.3432772,116880.0,116870.0,2.58169937]
[1754773099011,0.2577304,116880.0,116870.0,2.58169937]
[1754773099306,0.0868398,116880.0,116870.0,2.91354837]
[1754773099603,0.0868398,116880.0,116870.0,2.4746051]
[1754773099809,0.0868398,116880.0,116870.0,2.58184065]
[1754773100009,0.0858398,116880.0,116870.0,2.58184065]
[1754773100211,0.0868398,116880.0,116870.0,2.58184065]
[1754773100809,0.0858398,116880.0,116870.0,2.58184065]
[1754773101109,0.0858398,116880.0,116870.0,2.58284065]
[1754773101411,0.0858398,116880.0,116870.0,2.58385772]
[1754773102606,0.0858398,116880.0,116870.0,2.4766051]
[1754773103006,0.0858398,116880.0,116870.0,2.1158051]
[1754773103211,0.0858398,116880.0,116870.0,2.4766051]
[1754773107006,0.0858398,116880.0,116870.0,1.7550051]
[1754773107215,0.0858398,116880.0,116870.0,2.4766051]
[1754773111509,0.0858398,116880.0,116870.0,2.58395746]
[1754773112117,0.0858398,116880.0,116870.0,1.92065946]
[1754773112318,0.0858398,116880.0,116870.0,2.58395746]
[1754773115010,0.0858398,116880.0,116870.0,2.4766051]
[1754773120523,0.0858398,116880.0,116870.0,2.58395746]
[1754773121317,0.0858398,116880.0,116870.0,1.92065946]
[1754773121621,0.0858398,116880.0,116870.0,2.58395746]
[1754773121923,0.0858398,116880.0,116870.0,2.4766051]
[1754773122228,0.0858398,116880.0,116870.0,2.58395746]
[1754773122722,0.0858398,116880.0,116870.0,1.86235746]
[1754773122922,0.0858398,116880.0,116870.0,2.58395746]
[1754773125427,0.0858398,116880.0,116870.0,2.4766051]
[1754773128424,0.0858398,116880.0,116870.0,1.7550051]
[1754773128631,0.0858398,116880.0,116870.0,2.4766051]
[1754773129229,0.0858398,116880.0,116870.0,2.58399196]
[1754773130120,0.0858398,116880.0,116870.0,2.4766051]
[1754773131728,0.0858398,116880.0,116870.0,2.58398978]
[1754773131930,0.0858398,116880.0,116870.0,2.4766051]
[1754773132431,0.0858398,116880.0,116870.0,1.8133071]
[1754773132630,0.0858398,116880.0,116870.0,2.4766051]
[1754773134230,0.0858398,116880.0,116870.0,1.8133071]